bitfinex/quotes_ETHUSD_20251010
["timestamp","ask_amount","ask_price","bid_price","bid_amount"]
[1760131681105,1.40269885,3572.9,3544.9,0.745]
[1760131681308,1.40269885,3572.9,3542.8,0.0016]
[1760131681309,2.15872122,3565.3,3541.6,0.745]
[1760131681511,0.67418999,3565.1,3541.6,0.745]
[1760131681855,1.45437279,3571.9,3534.5,0.00161]
[1760131681856,1.41524973,3568.2,3549.7,0.745]
[1760131681997,0.745,3575.2,3549.7,0.745]
[1760131681998,0.26459999,3572.0,3549.8,0.127]
[1760131682194,0.745,3576.7,3549.8,0.127]
[1760131682195,0.66345999,3575.5,3549.8,1.14867491]
[1760131682418,0.628,3575.4,3549.9,0.14372208]
[1760131682618,0.391,3579.1,3558.0,0.745]
[1760131682814,0.745,3579.4,3558.0,0.745]
[1760131683096,1.44484802,3579.2,3558.1,0.296]
[1760131683416,1.49263892,3579.0,3558.0,0.745]
[1760131683616,1.47479916,3578.9,3558.1,0.255]
[1760131683823,0.4583,3579.0,3558.0,0.745]
[1760131684130,0.22403992,3579.3,3558.2,0.25022634]
[1760131684315,0.95850629,3579.2,3558.2,0.25022634]
[1760131684519,1.49263892,3579.0,3558.2,0.25022634]
[1760131684825,1.45942588,3581.6,3558.2,0.25022634]
[1760131685130,1.40236815,3581.4,3558.3,0.2551618]
[1760131685434,0.10552747,3581.8,3558.0,0.745]
[1760131685435,0.9513,3581.3,3558.4,0.297]
[1760131685635,0.002,3571.5,3558.0,0.745]
[1760131685940,0.002,3571.5,3558.1,0.305]
[1760131686107,0.002,3571.5,3558.1,0.52528422]
[1760131686437,0.00417973,3571.4,3558.2,0.23242361]
[1760131686639,0.002,3571.5,3558.0,0.745]
[1760131686810,0.002,3571.5,3558.1,0.22559028]
[1760131687136,0.002,3571.5,3558.0,0.745]
[1760131687606,0.002,3571.5,3558.1,0.326]
[1760131687808,0.002,3571.5,3558.1,0.57355292]
[1760131688146,1.47479916,3578.9,3558.1,0.57355292]
[1760131688444,1.40767493,3578.7,3558.2,0.21198275]
[1760131688628,1.48577501,3578.5,3558.2,0.21198275]
[1760131688940,1.48577501,3578.5,3558.1,0.326]
[1760131688941,0.24554921,3579.4,3558.1,0.326]
[1760131689164,1.987,3579.3,3558.1,0.326]
[1760131689435,1.44484802,3579.2,3558.2,0.21203436]
[1760131689637,1.49263892,3579.0,3558.2,0.21203436]
[1760131689843,1.46051521,3578.8,3558.2,0.21203436]
[1760131690056,1.49749776,3579.3,3564.8,0.745]
[1760131690345,0.00413739,3578.5,3564.9,0.03117842]
[1760131690548,0.23740196,3580.1,3565.0,0.254]
[1760131690840,0.081,3580.9,3565.0,0.254]
[1760131691040,0.4583,3580.8,3565.0,0.254]
[1760131691245,12.76794,3580.7,3565.0,0.254]
[1760131691414,1.45318716,3580.6,3565.0,0.254]
[1760131691616,1.41120182,3582.9,3565.0,0.254]
[1760131691824,1.47853919,3580.4,3565.0,0.254]
[1760131692022,0.00413128,3580.0,3565.0,0.254]
[1760131692220,0.63155161,3579.9,3565.1,0.24335319]
[1760131692425,0.12070763,3579.8,3565.2,0.744]
[1760131692621,1.65881595,3580.9,3565.2,0.744]
[1760131692831,1.44614596,3580.7,3565.2,0.744]
[1760131693038,1.47494385,3580.5,3565.2,0.744]
[1760131693248,14.086,3561.7,3560.4,0.744]
[1760131693420,1.47494385,3580.5,3560.5,0.254]
[1760131693621,1.45841362,3580.3,3560.4,0.744]
[1760131693828,0.744,3586.1,3560.6,0.24588664]
[1760131693829,0.53095202,3580.2,3560.6,0.24588664]
[1760131694039,0.51918857,3580.1,3560.5,0.286]
[1760131694245,0.20697753,3580.1,3564.9,0.744]
[1760131694550,0.3039344,3580.0,3565.0,0.307763]
[1760131694719,1.4801594,3579.8,3559.7,0.744]
[1760131694916,1.47906918,3579.6,3559.7,0.744]
[1760131695117,0.21270206,3579.7,3559.8,0.51461969]
[1760131695342,1.47494385,3580.5,3559.8,0.88184558]
[1760131695543,0.4583,3580.4,3559.7,0.744]
[1760131695741,1.41669893,3580.2,3559.7,0.744]
[1760131695934,1.40870707,3580.0,3559.7,0.744]
[1760131696131,1.43784676,3586.8,3560.6,0.744]
[1760131696354,0.20861186,3579.9,3560.6,0.744]
[1760131696556,0.20861186,3579.9,3559.8,0.324]
[1760131696557,2.25921303,3579.8,3558.2,0.222]
[1760131696724,2.25921303,3579.8,3567.3,0.744]
[1760131696725,0.20861186,3579.7,3567.3,0.744]
[1760131696925,0.18,3584.6,3567.4,0.26752595]
[1760131697157,0.20861186,3579.9,3565.9,0.744]
[1760131697335,0.20861186,3579.9,3564.4,0.091]
[1760131697336,0.4694,3579.8,3560.3,0.20295743]
[1760131697520,1.9495594,3579.8,3558.9,0.17429688]
[1760131697722,1.47906918,3579.6,3561.1,0.744]
[1760131697949,1.47906918,3579.6,3559.0,0.425]
[1760131697950,1.4011257,3623.8,3559.0,0.425]
[1760131698155,1.43688913,3588.6,3564.1,0.744]
[1760131698452,1.43688913,3588.6,3548.3,0.00528]
[1760131698453,0.66923999,3588.4,3564.2,0.24]
[1760131698620,1.47518338,3587.5,3564.3,0.24]
[1760131698822,1.47553778,3587.3,3564.3,0.24]
[1760131699018,0.49755505,3587.2,3569.2,0.744]
[1760131699240,0.11358043,3587.1,3569.3,0.859]
[1760131699440,0.28199876,3587.0,3569.3,0.859]
[1760131699642,0.28199876,3587.0,3569.3,0.744]
[1760131699643,0.00413007,3586.9,3569.3,0.744]
[1760131699946,1.72543898,3586.8,3569.4,0.536]
[1760131700148,1.4404443,3589.0,3569.4,0.84991467]
[1760131700448,1.46911487,3588.7,3569.2,0.744]
[1760131700666,1.65942869,3588.8,3568.1,0.24215213]
[1760131700839,1.41669048,3588.5,3566.1,0.2538188]
[1760131701159,0.00412189,3588.3,3568.3,0.744]
[1760131701362,0.19074909,3588.2,3568.4,0.211]
[1760131701570,0.4694,3592.1,3568.4,0.955]
[1760131701769,1.45407727,3590.8,3568.5,0.52298047]
[1760131701957,1.42744121,3589.3,3568.4,0.955]
[1760131702157,0.2029094,3589.3,3568.4,0.955]
[1760131702357,1.42744121,3589.3,3568.5,0.26938955]
[1760131702558,1.44205438,3589.8,3568.6,0.336]
[1760131702735,1.46309241,3588.8,3568.6,0.336]
[1760131702939,1.43688913,3588.6,3568.6,0.336]
[1760131703135,0.66500025,3588.7,3568.7,1.65211248]
[1760131703337,0.743,3592.2,3568.7,1.0006311]
[1760131703549,0.743,3599.4,3576.2,0.743]
[1760131703749,0.19261984,3589.8,3576.2,0.743]
[1760131703948,0.002,3588.8,3576.3,0.28369276]
[1760131704465,0.002,3589.2,3576.2,0.743]
[1760131704779,0.19259756,3603.0,3584.6,0.743]
[1760131704975,0.4694,3602.9,3584.7,0.49076991]
[1760131705161,0.002,3589.6,3583.3,0.743]
[1760131705475,1.39271397,3603.4,3583.3,0.743]
[1760131705634,0.17372728,3601.3,3583.3,0.743]
[1760131705838,1.39063752,3602.9,3583.3,0.743]
[1760131706057,1.32752645,3602.7,3583.3,0.743]
[1760131706274,1.32553279,3602.5,3583.3,0.743]
[1760131706438,1.0,4506.5,3583.3,0.743]
[1760131706439,0.12642299,3602.9,3583.3,0.743]
[1760131706635,0.12642299,3602.9,3576.1,0.00159]
[1760131706636,0.14997735,3602.4,3582.0,0.30434439]
[1760131706871,0.00362599,3602.9,3583.4,0.27007772]
[1760131707048,0.24761902,3603.1,3576.2,0.20829272]
[1760131707251,0.24320235,3602.8,3576.2,0.20670272]
[1760131707451,0.26109641,3603.1,3576.3,0.19322534]
[1760131707765,0.4694,3603.0,3569.1,0.21290434]
[1760131707960,0.25745367,3602.9,3569.1,0.21290434]
[1760131708168,0.23543064,3602.9,3569.1,0.21290434]
[1760131708372,0.22043064,3602.9,3569.1,0.21290434]
[1760131708548,0.22177787,3603.1,3569.1,0.21290434]
[1760131708884,0.4694,3602.8,3566.1,0.11358043]
[1760131709179,0.31735556,3602.7,3566.1,0.11358043]
[1760131709353,0.4694,3602.6,3566.1,0.11773478]
[1760131709549,0.31747223,3602.5,3566.2,0.00411239]
[1760131709755,0.4694,3602.4,3566.3,0.14096191]
[1760131709957,0.28006074,3602.3,3576.3,0.37142874]
[1760131710151,0.4694,3608.8,3569.1,0.00159]
[1760131710367,0.4694,3603.1,3575.8,0.17935412]
[1760131710562,0.29882596,3603.0,3568.6,0.00159]
[1760131710765,5.577,3603.0,3568.7,0.15965013]
[1760131710970,0.24661851,3602.9,3568.7,0.15965013]
[1760131711277,0.4694,3602.8,3568.8,0.00415435]
[1760131711487,6.0464,3602.8,3568.8,0.21758027]
[1760131711652,0.23674148,3602.7,3568.8,0.21758027]
[1760131711849,0.4644,3602.6,3561.6,0.17924016]
[1760131712054,0.28729826,3602.5,3561.6,0.17924016]
[1760131712374,5.86429826,3602.5,3561.6,0.18339451]
[1760131713372,0.25638433,3602.4,3561.6,0.18339451]
[1760131713575,5.83338433,3602.4,3561.6,0.18339451]
[1760131713773,0.35597659,3602.2,3561.7,0.11358043]
[1760131713986,0.6241513,3602.1,3561.7,0.21457044]
[1760131714184,6.30673463,3602.1,3558.4,0.00693999]
[1760131714489,0.25592592,3602.0,3558.6,0.00587999]
[1760131714659,0.72480963,3601.9,3558.7,0.41297368]
[1760131714861,0.25540963,3601.8,3558.7,0.2048521]
[1760131715185,0.4694,3601.7,3558.8,0.46320702]
[1760131715495,5.177,3601.7,3559.9,30.0]
[1760131715783,5.177,3601.7,3598.0,100.0]
[1760131715987,0.014281,3603.2,3590.8,0.00158]
[1760131716176,0.014281,3603.2,3583.6,0.00158]
[1760131716378,0.014281,3603.2,3603.1,14.5]
[1760131716758,0.014281,3603.2,3595.9,0.00158]
[1760131716988,0.014281,3603.2,3595.6,0.27390161]
[1760131717185,0.014281,3603.2,3588.4,0.00571267]
[1760131717486,0.014281,3603.2,3585.1,0.00523]
[1760131717487,0.014281,3603.2,3603.1,14.5]
[1760131717793,0.92711833,3613.6,3595.9,0.00158]
[1760131718098,0.92711833,3613.6,3596.0,0.69625968]
[1760131718295,1.10791649,3613.3,3601.5,14.5]
[1760131718606,0.4694,3616.6,3594.3,0.00158]
[1760131718759,0.2209,3623.1,3587.1,0.00158]
[1760131718963,0.2209,3623.1,3586.7,0.19991111]
[1760131718964,1.14190899,3613.1,3586.7,0.19991111]
[1760131719165,0.002,3613.1,3587.8,5.133]
[1760131719412,0.002,3613.1,3587.9,0.85817878]
[1760131719690,0.002,3613.1,3587.9,0.84061921]
[1760131719896,0.002,3613.1,3595.3,14.5]
[1760131720389,0.002,3613.1,3589.2,100.0]
[1760131720610,0.91453367,3614.0,3589.2,100.0]
[1760131720611,0.82877278,3639.0,3595.2,0.32347375]
[1760131720753,0.4694,3633.7,3608.8,14.5]
[1760131720958,0.2209,3650.4,3601.6,0.00158]
[1760131720959,1.10594507,3619.9,3601.6,0.00158]
[1760131721155,1.10594507,3619.9,3601.7,0.47513988]
[1760131721590,1.10594507,3619.9,3601.3,0.34481469]
[1760131721591,0.4694,3619.5,3601.3,0.34481469]
[1760131721756,1.10594507,3619.9,3598.1,0.32450461]
[1760131721957,0.39363567,3618.5,3590.9,0.00158]
[1760131722288,1.38377449,3613.0,3591.0,0.2594041]
[1760131722489,0.002,3613.1,3604.1,14.5]
[1760131722863,0.002,3613.1,3596.9,0.00158]
[1760131723064,0.002,3613.1,3589.7,0.00158]
[1760131723259,0.002,3613.1,3582.5,0.174]
[1760131723260,0.15825169,3613.0,3598.2,14.5]
[1760131723470,0.002,3613.1,3591.0,0.00158]
[1760131723757,0.11358043,3613.0,3583.8,0.00158]
[1760131723971,0.13995334,3613.0,3591.1,0.2961184]
[1760131724170,0.13995334,3613.0,3591.2,0.29522485]
[1760131724398,0.12411377,3613.0,3591.3,0.33020798]
[1760131724692,0.12411377,3613.0,3591.4,0.6023667]
[1760131724881,0.002,3613.1,3591.5,0.84292235]
[1760131725083,0.16374058,3613.0,3591.5,0.50518842]
[1760131725284,0.19959441,3613.0,3591.5,0.50518842]
[1760131725482,0.002,3613.1,3591.6,0.32968479]
[1760131725799,0.002,3613.1,3591.7,0.30581066]
[1760131726097,0.11812506,3613.0,3591.8,0.70711661]
[1760131726283,0.002,3613.1,3592.6,8.106]
[1760131726483,0.002,3613.1,3592.7,0.32762886]
[1760131726798,0.002,3613.1,3592.8,0.31097808]
[1760131726959,0.002,3613.1,3592.9,0.30442429]
[1760131727361,0.002,3613.1,3593.0,0.63990786]
[1760131727596,0.002,3613.1,3593.1,0.66914035]
[1760131727793,1.002,3613.1,3593.2,0.70038236]
[1760131728000,1.002,3613.1,3593.1,0.27966403]
[1760131728001,0.99839562,3613.1,3593.3,0.2992095]
[1760131728290,0.69963061,3611.4,3593.4,0.34425276]
[1760131728498,0.69963061,3611.4,3593.5,0.26715299]
[1760131728683,0.69963061,3611.4,3593.6,0.3427875]
[1760131728882,0.69963061,3611.4,3593.7,0.28487917]
[1760131729072,0.69963061,3611.4,3593.7,0.36516942]
[1760131729265,0.69963061,3611.4,3586.6,6.65787999]
[1760131729469,0.69963061,3611.4,3593.0,0.19578709]
[1760131729688,0.88402623,3613.1,3593.1,0.35649724]
[1760131729890,0.88402623,3613.1,3593.2,0.23562042]
[1760131730201,0.22660885,3613.0,3593.3,0.34521681]
[1760131730385,0.88402623,3613.1,3593.4,0.33021431]
[1760131731003,0.88402623,3613.1,3588.1,11.67]
[1760131731215,0.24515051,3613.0,3592.0,0.20917123]
[1760131731414,0.88402623,3613.1,3588.5,9.549]
[1760131731721,0.00412641,3613.0,3588.6,0.26279216]
[1760131732020,0.20078099,3613.0,3588.6,0.59884886]
[1760131732190,0.20078099,3613.0,3588.6,0.25870743]
[1760131732514,0.88402623,3613.1,3588.6,0.58874952]
[1760131732821,0.88402623,3613.1,3588.7,0.00412641]
[1760131733123,1.08370847,3613.1,3590.8,6.263]
[1760131733414,0.88402623,3613.1,3590.9,0.27776157]
[1760131734008,0.22261795,3613.0,3590.9,0.27776157]
[1760131734211,0.88402623,3613.1,3592.5,2.963]
[1760131734445,0.00408473,3613.0,3592.5,2.963]
[1760131734618,0.88402623,3613.1,3592.6,0.59072898]
[1760131734803,0.88402623,3613.1,3592.6,0.61304647]
[1760131735118,0.88402623,3613.1,3596.1,22.65]
[1760131735331,0.88402623,3613.1,3592.7,0.62427225]
[1760131735332,0.88402623,3613.1,3596.2,0.54951902]
[1760131736013,0.88402623,3613.1,3589.0,3.73068197]
[1760131736192,0.88402623,3613.1,3589.0,0.27968197]
[1760131736392,0.88402623,3613.1,3589.1,18.52391075]
[1760131736626,0.88402623,3613.1,3589.2,0.28050968]
[1760131736823,0.88402623,3613.1,3589.3,30.0]
[1760131737115,0.88402623,3613.1,3597.0,18.901]
[1760131737319,0.88402623,3613.1,3597.1,16.98]
[1760131737629,0.88402623,3613.1,3597.1,0.24707772]
[1760131737924,0.08402623,3613.1,3597.2,9.522]
[1760131738233,0.08402623,3613.1,3599.6,30.363]
[1760131738438,0.08402623,3613.1,3599.7,0.32811046]
[1760131738797,0.08402623,3613.1,3598.6,0.28245147]
[1760131739002,0.2558965,3613.1,3599.7,0.28245147]
[1760131739304,0.32413444,3617.4,3598.0,18.32]
[1760131739503,0.32413444,3617.4,3598.1,0.26877135]
[1760131739744,0.32413444,3617.4,3598.1,0.23133254]
[1760131740047,0.32413444,3617.4,3590.9,0.2536212]
[1760131740223,0.18526721,3617.3,3591.6,4.7269]
[1760131740545,41.0,3600.0,3591.7,0.26847537]
[1760131740704,41.0,3600.0,3593.4,0.001]
[1760131740897,41.0,3600.0,3593.5,0.27773115]
[1760131741097,41.0,3600.0,3593.6,0.34750288]
[1760131741297,41.0,3600.0,3593.7,0.27406448]
[1760131741532,0.002,3613.1,3593.7,0.234835]
[1760131741829,0.002,3613.1,3593.4,0.001]
[1760131741998,0.26618182,3613.0,3593.4,0.001]
[1760131742198,0.26618182,3613.0,3593.6,1.32372139]
[1760131742399,0.002,3613.1,3593.8,1.39060691]
[1760131742728,0.57407773,3613.0,3593.4,0.001]
[1760131742929,0.31099226,3612.9,3593.4,0.001]
[1760131743133,0.31099226,3612.9,3593.5,0.58577279]
[1760131743342,0.002,3613.1,3593.6,1.39823211]
[1760131743541,0.002,3613.1,3593.4,0.001]
[1760131743542,0.19055613,3613.0,3593.8,1.39060691]
[1760131743712,0.19055613,3613.0,3594.0,1.3870307]
[1760131743912,0.19055613,3613.0,3593.4,0.001]
[1760131743913,0.00408831,3613.0,3595.3,1.32330853]
[1760131744124,0.002,3613.1,3595.5,1.39192908]
[1760131744328,0.002,3613.1,3595.7,1.3882274]
[1760131744516,0.002,3613.1,3595.9,1.31844077]
[1760131744715,0.002,3613.1,3596.1,1.3606118]
[1760131744942,0.002,3613.1,3596.2,0.65375999]
[1760131745118,0.40522821,3613.1,3596.8,14.5]
[1760131745319,0.002,3613.1,3596.3,0.24551793]
[1760131745623,0.002,3613.1,3596.4,0.29762968]
[1760131745624,0.24089792,3613.0,3596.4,0.29762968]
[1760131745826,0.002,3613.1,3599.0,14.5]
[1760131746148,1.38284282,3613.0,3597.9,0.24229977]
[1760131746324,0.002,3613.1,3598.5,0.24229977]
[1760131746651,0.28887746,3613.0,3593.4,0.001]
[1760131746839,0.23042077,3613.0,3593.5,0.57885359]
[1760131747038,0.23042077,3613.0,3593.5,0.22390098]
[1760131747257,0.22232182,3613.0,3593.5,0.22798628]
[1760131747459,0.24015373,3613.0,3599.5,14.5]
[1760131747622,0.42663247,3612.9,3593.4,0.001]
[1760131747817,0.002,3613.1,3599.2,0.53021324]
[1760131748045,0.002,3613.1,3593.4,0.001]
[1760131748250,0.002,3613.1,3593.5,0.16265218]
[1760131748553,0.002,3613.1,3593.5,0.29598533]
[1760131748756,1.38284282,3613.0,3593.5,0.29598533]
[1760131749130,0.002,3613.1,3593.5,0.29598533]
[1760131749657,0.002,3613.1,3593.5,0.30007063]
[1760131749823,1.38284282,3613.0,3593.5,0.30007063]
[1760131750022,0.002,3613.1,3593.5,0.29598533]
[1760131750662,0.002,3613.1,3593.5,0.3000641]
[1760131750834,0.002,3613.1,3593.6,0.27653337]
[1760131751032,0.002,3613.1,3594.9,100.0]
[1760131751218,0.002,3613.1,3593.4,0.001]
[1760131751219,0.002,3613.1,3595.0,0.25811268]
[1760131751856,0.17691803,3613.0,3596.0,14.5]
[1760131752059,0.002,3613.1,3596.1,0.28855354]
[1760131752263,0.03801599,3613.0,3593.4,0.001]
[1760131752421,0.4715,3612.9,3596.0,0.31256927]
[1760131752756,1.1134314,3612.8,3593.5,0.30250798]
[1760131752930,0.002,3613.1,3593.5,0.29850798]
[1760131753132,0.002,3613.1,3597.8,14.5]
[1760131753436,0.002,3613.1,3593.4,0.001]
[1760131753437,0.002,3613.1,3596.8,0.3268808]
[1760131753644,0.002,3613.1,3593.4,0.001]
[1760131753823,0.15088966,3613.0,3598.9,14.5]
[1760131754024,0.002,3613.1,3599.0,0.3282122]
[1760131754558,0.002,3613.1,3593.4,0.001]
[1760131754559,0.002,3613.1,3593.5,0.51649942]
[1760131754926,0.002,3613.1,3598.8,14.5]
[1760131755257,0.002,3613.1,3598.9,0.47032069]
[1760131755558,0.002,3613.1,3599.0,0.120883]
[1760131755755,0.002,3613.1,3599.1,0.30849367]
[1760131756054,0.002,3613.1,3597.8,0.27806593]
[1760131756352,0.002,3613.1,3599.2,0.120883]
[1760131756559,0.002,3613.1,3599.3,0.54732288]
[1760131757418,0.002,3613.1,3599.4,0.120883]
[1760131757619,0.002,3613.1,3600.8,14.5]
[1760131757820,0.002,3613.1,3600.1,0.21261512]
[1760131758059,0.002,3613.1,3600.9,0.120883]
[1760131758348,1.38284282,3613.0,3601.0,14.5]
[1760131758556,0.002,3613.1,3601.1,0.48005186]
[1760131758850,1.38284282,3613.0,3601.1,0.48005186]
[1760131759348,0.002,3613.1,3601.1,0.48412296]
[1760131759647,0.002,3613.1,3601.2,100.0]
[1760131759858,0.002,3613.1,3601.3,0.6227104]
[1760131760037,0.00965359,3617.5,3601.3,0.20431964]
[1760131760231,0.00965359,3617.5,3601.2,0.0576374]
[1760131760563,0.00965359,3617.5,3601.3,0.30357976]
[1760131760931,0.99034641,3612.9,3606.3,14.5]
[1760131761240,0.99034641,3612.9,3600.9,0.120883]
[1760131761555,1.34437958,3612.8,3606.6,14.5]
[1760131761959,1.34437958,3612.8,3606.7,0.54139476]
[1760131762265,1.34437958,3612.8,3599.4,0.00158]
[1760131762448,0.99034641,3612.9,3601.0,0.26328075]
[1760131762954,0.00965359,3617.5,3601.0,0.26328075]
[1760131763460,0.00965359,3617.5,3608.6,14.5]
[1760131763659,0.00965359,3617.5,3608.7,0.30199833]
[1760131764228,0.00965359,3617.5,3608.8,0.04939276]
[1760131764535,0.00965359,3617.5,3608.9,0.25781751]
[1760131764736,1.30173451,3617.4,3608.9,0.25781751]
[1760131765163,0.00965359,3617.5,3608.9,0.25781751]
[1760131765459,0.00965359,3617.5,3601.5,0.18826978]
[1760131765636,0.00965359,3617.5,3602.8,100.0]
[1760131765836,0.00965359,3617.5,3602.9,0.23357658]
[1760131766262,1.31020067,3624.8,3602.9,0.23357658]
[1760131766437,0.23185695,3624.6,3598.9,1.37325766]
[1760131766769,100.0,3620.7,3602.4,0.20483352]
[1760131767071,100.0,3620.7,3599.1,0.19205727]
[1760131767072,1.32357268,3620.5,3599.1,0.19205727]
[1760131767241,1.35357433,3620.3,3599.1,0.20735355]
[1760131767427,1.30145512,3624.9,3599.1,0.20735355]
[1760131767757,1.33518655,3624.6,3605.0,14.5]
[1760131767936,1.30145512,3624.9,3605.1,0.26946732]
[1760131768142,0.22429991,3624.5,3605.1,0.26946732]
[1760131768344,0.22888194,3624.6,3605.1,0.26946732]
[1760131768545,0.031374,3624.7,3605.1,0.26946732]
[1760131769273,1.32566603,3624.5,3599.1,0.11358043]
[1760131769457,0.30075913,3624.6,3603.3,100.0]
[1760131769768,0.031374,3624.7,3595.2,16.6725731]
[1760131769769,0.031374,3624.7,3603.4,0.25488985]
[1760131769968,1.53570212,3624.6,3603.4,0.25488985]
[1760131770170,1.33518655,3624.6,3603.4,0.25488985]
[1760131770376,0.031374,3624.7,3603.4,0.25488985]
[1760131770673,0.16296557,3624.5,3601.8,14.5]
[1760131770969,1.57656,3624.4,3601.9,0.24798103]
[1760131771177,0.24475221,3624.3,3601.9,0.25206219]
[1760131771333,0.30239819,3624.2,3599.1,0.26606953]
[1760131771534,1.37284769,3623.1,3602.0,0.24906953]
[1760131771755,1.35379991,3622.5,3598.4,0.2402362]
[1760131771988,1.35379991,3622.5,3595.2,16.6725731]
[1760131771989,0.58857187,3622.4,3595.3,16.6725731]
[1760131772166,0.29562575,3622.4,3597.5,0.2254862]
[1760131772368,0.29562575,3622.4,3599.1,0.23256953]
[1760131772541,0.031374,3624.7,3599.1,0.23256953]
[1760131772744,0.35658179,3624.6,3599.1,0.23256953]
[1760131772938,1.32566603,3624.5,3599.1,0.23256953]
[1760131773135,1.39023005,3624.3,3599.1,0.18271971]
[1760131773338,0.35665374,3623.3,3592.8,13.2369501]
[1760131773571,1.37284769,3623.1,3592.6,0.001]
[1760131773870,0.05629075,3622.9,3592.6,0.001]
[1760131774036,1.37909753,3622.7,3592.6,0.001]
[1760131774242,100.0,3617.1,3592.6,0.001]
[1760131774457,0.031374,3624.7,3593.6,0.25261838]
[1760131774458,0.3369407,3617.0,3593.6,0.25261838]
[1760131774739,0.83136691,3623.8,3593.6,0.09335732]
[1760131774947,0.50487271,3623.7,3593.6,0.27277109]
[1760131775146,0.21752566,3623.6,3593.6,0.27277109]
[1760131775351,0.09722211,3623.5,3593.6,0.27277109]
[1760131775562,0.25980475,3623.4,3593.6,0.194517]
[1760131775776,0.0041228,3623.2,3593.6,0.16793366]
[1760131775975,0.43264995,3623.1,3595.5,14.5]
[1760131776276,1.33701575,3622.9,3593.5,2.46936916]
[1760131776481,0.28780873,3622.9,3595.6,0.16552424]
[1760131776777,0.0041228,3622.7,3593.5,2.465288]
[1760131776950,1.39342239,3622.5,3593.5,2.465288]
[1760131777278,0.39560533,3622.2,3593.5,2.465288]
[1760131777577,1.36517515,3622.0,3615.5,0.1376]
[1760131777765,0.13602,3605.1,3593.8,2.73907]
[1760131777965,0.19920311,3608.5,3593.9,0.23051389]
[1760131778166,0.19920311,3608.5,3593.5,2.465288]
[1760131778167,0.3833967,3606.2,3593.6,0.001]
[1760131778356,0.38378836,3608.4,3593.6,0.27499662]
[1760131778557,0.38378836,3608.4,3593.7,0.25649662]
[1760131778756,0.00158,3614.1,3593.6,0.001]
[1760131778974,0.37453249,3614.0,3593.6,0.001]
[1760131779177,0.36733089,3614.0,3593.7,0.27330869]
[1760131779353,12.562,3613.9,3593.6,0.001]
[1760131779549,0.4417,3613.8,3593.6,0.001]
[1760131779855,0.00158,3614.1,3593.6,0.001]
[1760131780060,0.33313089,3613.7,3593.6,0.001]
[1760131780266,0.00158,3614.1,3593.7,0.30234435]
[1760131780649,0.35057457,3614.0,3593.6,0.001]
[1760131780882,0.35057457,3614.0,3597.1,14.5]
[1760131781051,0.35057457,3614.0,3593.6,0.001]
[1760131781396,1.35759618,3614.0,3593.6,0.001]
[1760131781683,0.28618175,3613.9,3593.7,0.59613405]
[1760131782059,0.00158,3614.1,3593.8,0.54536491]
[1760131782261,0.00158,3614.1,3593.6,0.001]
[1760131782583,0.00158,3614.1,3601.0,14.5]
[1760131782769,0.00158,3614.1,3593.5,2.4107918]
[1760131782969,0.30533602,3614.0,3601.1,0.46408342]
[1760131783170,0.00158,3614.1,3593.6,100.0]
[1760131783372,0.00158,3614.1,3593.6,100.51624961]
[1760131783680,0.00158,3614.1,3595.6,14.5]
[1760131783681,0.32383602,3614.0,3595.6,14.5]
[1760131783978,0.32383602,3614.0,3595.7,0.32967282]
[1760131784158,0.13031725,3613.8,3593.7,0.2766114]
[1760131784360,0.26235227,3613.7,3595.3,0.32179937]
[1760131784560,0.28585227,3613.7,3595.8,14.5]
[1760131784760,0.00158,3614.1,3595.8,14.5]
[1760131784960,0.00158,3614.1,3594.7,100.0]
[1760131784961,1.35759618,3614.0,3596.0,1.32057571]
[1760131785177,1.3629497,3613.8,3595.9,0.28260144]
[1760131785378,0.20496112,3613.9,3593.5,2.4107918]
[1760131785578,1.3677578,3613.4,3597.3,14.5]
[1760131785779,0.0040858,3614.0,3597.4,0.32228142]
[1760131785982,0.30998749,3613.8,3597.4,0.28661476]
[1760131786179,0.29014297,3613.8,3595.6,14.5]
[1760131786377,0.4686,3613.7,3595.7,0.29399726]
[1760131786580,0.78652335,3613.6,3593.5,2.4107918]
[1760131786781,1.36610381,3612.9,3593.6,0.2020511]
[1760131786958,1.33899173,3612.7,3593.6,0.2020511]
[1760131787153,1.36435861,3612.4,3593.5,2.4107918]
[1760131787381,0.4686,3612.3,3593.6,0.1956953]
[1760131787688,1.33769621,3612.1,3593.5,2.4107918]
[1760131787861,1.30093277,3611.9,3594.7,14.5]
[1760131788185,0.76707239,3611.8,3593.5,2.4107918]
[1760131788389,0.29847239,3611.8,3593.5,2.4107918]
[1760131788572,1.37009882,3612.8,3593.5,2.4107918]
[1760131788885,1.1,3612.9,3593.6,0.20249691]
[1760131789180,1.33899173,3612.7,3593.5,2.4107918]
[1760131789379,1.3933336,3612.5,3593.6,0.11358043]
[1760131789579,0.33520185,3612.4,3593.6,0.11358043]
[1760131789780,1.37009882,3612.8,3593.6,0.11675123]
[1760131789991,1.37009882,3612.8,3593.5,2.4107918]
[1760131790165,1.1,3612.9,3593.5,2.4107918]
[1760131790166,0.32261928,3612.7,3597.7,14.5]
[1760131790495,1.1,3612.9,3593.5,2.4107918]
[1760131790665,1.1,3612.9,3597.8,0.14432791]
[1760131790854,1.1,3612.9,3593.6,0.13203593]
[1760131791059,0.4501,3612.8,3593.5,2.4107918]
[1760131791373,1.36529019,3612.6,3593.5,2.4107918]
[1760131791574,0.64409539,3612.7,3593.5,2.4107918]
[1760131791776,0.22502468,3612.5,3593.5,2.4107918]
[1760131791979,13.0081,3612.4,3593.5,2.4107918]
[1760131792282,1.33437483,3612.2,3585.3,1.37964551]
[1760131792489,1.30367389,3612.0,3591.7,14.5]
[1760131792989,1.1,3612.9,3591.8,0.2208365]
[1760131793358,1.1,3612.9,3600.7,14.5]
[1760131793564,1.1,3612.9,3590.0,1.31466927]
[1760131793565,1.1,3612.9,3594.3,14.433597]
[1760131793774,1.1,3612.9,3594.5,1.31075564]
[1760131794061,0.71662241,3612.8,3603.9,14.5]